fUST/lending_fUST_20251207
["ID","MTS","AMOUNT","RATE_DAILY","PERIOD"]
[396528162,1765036803488,172.52100366,8.415e-05,2]
[396528167,1765036807595,-217.29391882,8.5e-05,2]
[396528169,1765036813653,239.34195003,8.257e-05,2]
[396528170,1765036815906,430.81551005,8.257e-05,2]
[396528172,1765036818317,765.89424008,8.257e-05,2]
[396528173,1765036823823,708.18,8.3e-05,2]
[396528174,1765036824469,708.18,8.4e-05,2]
[396528175,1765036828412,-3.70608118,8.5e-05,2]
[396528176,1765036828535,-708.18,8.5e-05,2]
[396528177,1765036834625,250.0,8.421e-05,2]
[396528178,1765036837469,189.9403302,7.649e-05,2]
[396528179,1765036841156,150.0,6.678e-05,2]
[396528180,1765036842134,150.0,6.997e-05,2]
[396528181,1765036842462,150.0,7.315e-05,2]
[396528182,1765036843058,150.0,7.633e-05,2]
[396528183,1765036843339,150.0,7.951e-05,2]
[396528184,1765036843706,150.0,8.269e-05,2]
[396528185,1765036843804,-250.0,8.506e-05,2]
[396528186,1765036847087,708.08,8.251e-05,2]
[396528191,1765036866620,-752.80816769,8.411e-05,2]
[396528195,1765036879670,658.96,8.3e-05,2]
[396528196,1765036880065,658.96,8.4e-05,2]
[396528201,1765036896466,-405.63943787,8.492e-05,2]
[396528202,1765036898604,-215.97389463,8.492e-05,2]
[396528203,1765036901767,-214.45172086,8.492e-05,2]
[396528204,1765036902288,374.11756834,8.407e-05,2]
[396528205,1765036903491,-237.28188399,8.492e-05,2]
[396528206,1765036903778,443.225,8.322e-05,2]
[396528207,1765036903873,184.828,8.322e-05,2]
[396528209,1765036906303,-415.11669852,8.492e-05,2]
[396528210,1765036909516,-276.2070089,8.492e-05,2]
[396528211,1765036912134,150.0,6.683e-05,2]
[396528212,1765036912300,150.0,7.001e-05,2]
[396528213,1765036913239,-346.94255574,8.492e-05,2]
[396528214,1765036916510,-266.53083866,8.492e-05,2]
[396528215,1765036919251,-396.94592762,8.492e-05,2]
[396528217,1765036921516,-265.05990688,8.492e-05,2]
[396528218,1765036922626,300.0,8.491e-05,2]
[396528219,1765036923695,-200.64600934,8.492e-05,2]
[396528222,1765036926096,-192.89268498,8.492e-05,2]
[396528224,1765036928935,-234.59445117,8.492e-05,2]
[396528226,1765036930667,-239.17249684,8.492e-05,2]
[396528236,1765036935482,-403.76990371,8.492e-05,2]
[396528239,1765036938126,-331.23003834,8.492e-05,2]
[396528243,1765036940342,-189.03337398,8.492e-05,2]
[396528252,1765036943800,-231.40512591,8.492e-05,2]
[396528261,1765036945665,-199.4671251,8.492e-05,2]
[396528274,1765036947052,212.18826315,0.00010959,7]
[396528278,1765036947234,697.77,8.3e-05,2]
[396528281,1765036947369,-375.26479566,8.492e-05,2]
[396528283,1765036947713,697.77,8.4e-05,2]
[396528298,1765036950070,-280.67967314,8.492e-05,2]
[396528309,1765036951727,-263.18888005,8.492e-05,2]
[396528313,1765036954444,-322.78191231,8.492e-05,2]
[396528314,1765036954916,216.12743048,8.491e-05,2]
[396528315,1765036956861,500.0,8.491e-05,2]
[396528316,1765036956959,500.0,8.491e-05,2]
[396528317,1765036957073,500.0,8.491e-05,2]
[396528318,1765036957187,555.38056264,8.491e-05,2]
[396528319,1765036957302,500.0,8.491e-05,2]
[396528320,1765036957405,163.42801046,8.491e-05,2]
[396528321,1765036957489,523.25651968,8.491e-05,2]
[396528322,1765036957577,178.67207417,8.491e-05,2]
[396528323,1765036957681,500.0,8.491e-05,2]
[396528324,1765036957867,1762.75550169,8.491e-05,2]
[396528325,1765036957957,500.0,8.491e-05,2]
[396528326,1765036958125,522.51981297,8.491e-05,2]
[396528328,1765036958218,80.15951957,8.491e-05,2]
[396528330,1765036958294,419.84048043,8.491e-05,2]
[396528332,1765036958395,500.0,8.491e-05,2]
[396528333,1765036958528,1762.75550169,8.491e-05,2]
[396528334,1765036958612,500.0,8.491e-05,2]
[396528336,1765036958709,500.0,8.491e-05,2]
[396528337,1765036958840,500.0,8.491e-05,2]
[396528338,1765036958954,500.0,8.491e-05,2]
[396528339,1765036959104,1762.75550169,8.491e-05,2]
[396528340,1765036959196,500.0,8.491e-05,2]
[396528342,1765036959321,500.0,8.491e-05,2]
[396528343,1765036959405,500.0,8.491e-05,2]
[396528344,1765036959501,500.0,8.491e-05,2]
[396528345,1765036959649,1554.65851619,8.491e-05,2]
[396528346,1765036959775,208.0969855,8.491e-05,2]
[396528347,1765036959895,500.0,8.491e-05,2]
[396528348,1765036959977,500.0,8.491e-05,2]
[396528349,1765036960118,1762.75550169,8.491e-05,2]
[396528350,1765036960213,500.0,8.491e-05,2]
[396528351,1765036960530,500.0,8.491e-05,2]
[396528352,1765036960628,500.0,8.491e-05,2]
[396528353,1765036960757,1762.75550169,8.491e-05,2]
[396528354,1765036960834,500.0,8.491e-05,2]
[396528355,1765036960940,500.0,8.491e-05,2]
[396528356,1765036961025,500.0,8.491e-05,2]
[396528357,1765036961165,1762.75550169,8.491e-05,2]
[396528358,1765036961247,500.0,8.491e-05,2]
[396528359,1765036961386,3.64650943,8.491e-05,2]
[396528360,1765036961511,1759.10899226,8.491e-05,2]
[396528361,1765036961709,1762.75550169,8.491e-05,2]
[396528362,1765036961860,1762.75550169,8.491e-05,2]
[396528363,1765036962031,1762.75550169,8.491e-05,2]
[396528364,1765036962185,1762.75550169,8.491e-05,2]
[396528365,1765036962366,1189.87900098,8.491e-05,2]
[396528366,1765036962488,572.87650071,8.491e-05,2]
[396528367,1765036962632,1762.75550169,8.491e-05,2]
[396528368,1765036962780,1762.75550169,8.491e-05,2]
[396528369,1765036962955,1762.75550169,8.491e-05,2]
[396528370,1765036963154,1762.75550169,8.491e-05,2]
[396528371,1765036963418,1762.75550169,8.491e-05,2]
[396528372,1765036963558,613.35599084,8.491e-05,2]
[396528373,1765036963676,1149.39951085,8.491e-05,2]
[396528374,1765036963827,1762.75550169,8.491e-05,2]
[396528375,1765036964060,1762.75550169,8.491e-05,2]
[396528376,1765036964212,1762.75550169,8.491e-05,2]
[396528377,1765036965066,1762.75550169,8.491e-05,2]
[396528378,1765036965486,-247.16595522,8.492e-05,2]
[396528379,1765036966778,1799.58848239,8.406e-05,2]
[396528380,1765036966853,5555.99905514,8.406e-05,2]
[396528381,1765036966951,958.10932787,8.257e-05,2]
[396528382,1765036967839,-242.53486861,8.492e-05,2]
[396528383,1765036971029,-204.86404478,8.492e-05,2]
[396528384,1765036973543,-267.93770927,8.492e-05,2]
[396528385,1765036973988,352.25198129,8.491e-05,2]
[396528386,1765036975746,-171.42399718,8.492e-05,2]
[396528387,1765036976625,150.0,6.877e-05,2]
[396528388,1765036977090,150.0,7.205e-05,2]
[396528389,1765036977684,150.0,7.532e-05,2]
[396528390,1765036977918,150.0,7.86e-05,2]
[396528391,1765036978334,150.0,8.187e-05,2]
[396528392,1765036979523,-173.43486946,8.492e-05,2]
[396528393,1765036979757,1200.0,8.491e-05,2]
[396528394,1765036982349,-265.58500787,8.492e-05,2]
[396528395,1765036982775,236.0,8.491e-05,2]
[396528396,1765036982938,300.0,8.491e-05,2]
[396528397,1765036984542,-158.2235184,8.492e-05,2]
[396528398,1765036988023,-196.19853118,8.492e-05,2]
[396528399,1765036988951,647.6496357,8.407e-05,2]
[396528400,1765036989040,3757.1378515,8.407e-05,2]
[396528401,1765036990266,-345.38161815,8.492e-05,2]
[396528402,1765036990773,282.16944809,0.0001311,3]
[396528403,1765036992799,-311.02857796,8.492e-05,2]
[396528404,1765036994531,-207.97703437,8.492e-05,2]
[396528405,1765036996654,-163.60457739,8.492e-05,2]
[396528406,1765036998407,-170.13759692,8.492e-05,2]
[396528407,1765036998781,783.13,8.3e-05,2]
[396528408,1765036999268,783.13,8.4e-05,2]
[396528409,1765037000973,-417.40216267,8.492e-05,2]
[396528410,1765037008043,-151.1,8.492e-05,2]
[396528411,1765037010236,-163.4661529,8.492e-05,2]
[396528412,1765037011658,-264.43587518,8.492e-05,2]
[396528413,1765037012227,500.0,8.491e-05,2]
[396528414,1765037013616,-264.36760307,8.492e-05,2]
[396528415,1765037014423,2087.47362043,8.491e-05,2]
[396528416,1765037014867,2087.47362043,8.491e-05,2]
[396528417,1765037015279,1.66490764,8.491e-05,2]
[396528418,1765037015409,2085.80871279,8.491e-05,2]
[396528419,1765037015877,2087.47362043,8.491e-05,2]
[396528420,1765037016160,2087.47362043,8.491e-05,2]
[396528421,1765037016626,2087.47362043,8.491e-05,2]
[396528422,1765037017039,1651.78042592,8.491e-05,2]
[396528423,1765037017168,435.69319451,8.491e-05,2]
[396528424,1765037017980,2087.47362043,8.491e-05,2]
[396528425,1765037018194,2087.47362043,8.491e-05,2]
[396528426,1765037018340,2087.47362043,8.491e-05,2]
[396528427,1765037018478,-151.34,8.492e-05,2]
[396528428,1765037018622,2087.47362043,8.491e-05,2]
[396528429,1765037018797,1214.42232377,8.491e-05,2]
[396528430,1765037018921,873.05129666,8.491e-05,2]
[396528431,1765037019286,2087.47362043,8.491e-05,2]
[396528432,1765037019433,2087.47362043,8.491e-05,2]
[396528433,1765037019593,2087.47362043,8.491e-05,2]
[396528434,1765037019732,2087.47362043,8.491e-05,2]
[396528435,1765037019957,777.06422162,8.491e-05,2]
[396528436,1765037020089,1310.40939881,8.491e-05,2]
[396528437,1765037020296,2087.47362043,8.491e-05,2]
[396528438,1765037020456,2087.47362043,8.491e-05,2]
[396528439,1765037020589,2087.47362043,8.491e-05,2]
[396528440,1765037020732,2087.47362043,8.491e-05,2]
[396528441,1765037028490,339.70611947,8.491e-05,2]
[396528442,1765037028599,1747.76750096,8.491e-05,2]
[396528443,1765037028758,929.58107333,8.491e-05,2]
[396528444,1765037028921,929.58107333,8.491e-05,2]
[396528445,1765037029053,929.58107333,8.491e-05,2]
[396528446,1765037029212,929.58107333,8.491e-05,2]
[396528447,1765037029435,929.58107333,8.491e-05,2]
[396528448,1765037029572,929.58107333,8.491e-05,2]
[396528449,1765037029717,929.58107333,8.491e-05,2]
[396528450,1765037029839,929.58107333,8.491e-05,2]
[396528451,1765037029986,815.5939124,8.491e-05,2]
[396528452,1765037030101,113.98716093,8.491e-05,2]
[396528453,1765037030467,929.58107333,8.491e-05,2]
[396528454,1765037030606,929.58107333,8.491e-05,2]
[396528455,1765037030731,929.58107333,8.491e-05,2]
[396528456,1765037030850,929.58107333,8.491e-05,2]
[396528457,1765037030987,929.58107333,8.491e-05,2]
[396528458,1765037031117,929.58107333,8.491e-05,2]
[396528459,1765037031448,929.58107333,8.491e-05,2]
[396528460,1765037031581,929.58107333,8.491e-05,2]
[396528461,1765037031729,929.58107333,8.491e-05,2]
[396528462,1765037031897,929.58107333,8.491e-05,2]
[396528463,1765037032047,419.68238871,8.491e-05,2]
[396528464,1765037032492,5577.48643998,8.406e-05,2]
[396528465,1765037041765,-153.03072889,8.407e-05,2]
[396528466,1765037043563,150.0,6.967e-05,2]
[396528467,1765037043990,150.0,7.299e-05,2]
[396528468,1765037044417,150.0,7.631e-05,2]
[396528469,1765037044867,151.05,7.963e-05,2]
[396528470,1765037045749,-300.0,8.491e-05,2]
[396528471,1765037045809,188.81,8.294e-05,2]
[396528472,1765037049388,188.81,8.211e-05,2]
[396528473,1765037057482,3402.04989004,8.407e-05,2]
[396528474,1765037068850,800.98,8.3e-05,2]
[396528475,1765037069404,800.98,8.4e-05,2]
[396528476,1765037072450,4996.00010996,8.407e-05,2]
[396528477,1765037091437,-216.18121639,8.407e-05,2]
[396528478,1765037093592,-161.36012214,8.407e-05,2]
[396528479,1765037096421,-266.97089697,8.407e-05,2]
[396528480,1765037099860,-228.73563262,8.407e-05,2]
[396528481,1765037101844,-190.99930578,8.406e-05,2]
[396528482,1765037103252,-109.00069422,8.406e-05,2]
[396528483,1765037103326,-212.85175509,8.406e-05,2]
[396528484,1765037105607,-87.14824491,8.406e-05,2]
[396528485,1765037105684,-248.62361005,8.407e-05,2]
[396528486,1765037107639,-189.08130832,8.406e-05,2]
[396528487,1765037109169,-110.91869168,8.406e-05,2]
[396528488,1765037109241,-305.38198586,8.407e-05,2]
[396528489,1765037110667,-152.72,8.406e-05,2]
[396528490,1765037112371,-268.9381939,8.406e-05,2]
[396528491,1765037114065,-174.9151614,8.406e-05,2]
[396528492,1765037116150,-191.40125381,8.406e-05,2]
[396528493,1765037118377,150.0,6.91e-05,2]
[396528494,1765037118791,150.0,7.239e-05,2]
[396528495,1765037119188,150.0,7.568e-05,2]
[396528496,1765037119552,-276.13942112,8.406e-05,2]
[396528497,1765037119950,184.4,7.897e-05,2]
[396528498,1765037120121,230.5,8.226e-05,2]
[396528499,1765037120255,768.94,8.3e-05,2]
[396528500,1765037123873,-454.2047157,8.4e-05,2]
[396528501,1765037125677,-260.18331902,8.4e-05,2]
[396528503,1765037128585,-54.55196528,8.4e-05,2]
[396528504,1765037128656,-135.88596977,8.406e-05,2]
[396528505,1765037128726,-180.03959258,8.407e-05,2]
[396528507,1765037129948,-176.45544528,8.407e-05,2]
[396528509,1765037134424,-213.98014802,8.407e-05,2]
[396528511,1765037136562,-363.38578412,8.407e-05,2]
[396528512,1765037138297,-160.24,8.407e-05,2]
[396528513,1765037140028,-201.77467229,8.407e-05,2]
[396528514,1765037142888,-215.89145773,8.407e-05,2]
[396528515,1765037144861,-317.12828485,8.407e-05,2]
[396528516,1765037147132,-155.76528857,8.407e-05,2]
[396528517,1765037149429,-312.26497147,8.407e-05,2]
[396528518,1765037152792,-169.61878785,8.407e-05,2]
[396528519,1765037154613,-169.70168396,8.407e-05,2]
[396528520,1765037155987,-191.93452611,8.407e-05,2]
[396528521,1765037158560,-530.33354951,8.407e-05,2]
[396528522,1765037162088,-170.40106413,8.407e-05,2]
[396528523,1765037163491,-254.51170719,8.406e-05,2]
[396528524,1765037166207,-45.48829281,8.406e-05,2]
[396528525,1765037166277,-214.85766744,8.407e-05,2]
[396528526,1765037169014,-257.48945672,8.407e-05,2]
[396528527,1765037172215,-284.39829281,8.407e-05,2]
[396528528,1765037174304,-311.28596548,8.407e-05,2]
[396528529,1765037179575,738.18,8.3e-05,2]
[396528530,1765037181414,-264.59983004,8.4e-05,2]
[396528531,1765037195631,424.54579552,8.316e-05,2]
[396528532,1765037199528,150.0,6.893e-05,2]
[396528533,1765037199947,150.0,7.221e-05,2]
[396528534,1765037200347,150.0,7.549e-05,2]
[396528535,1765037200764,150.0,7.878e-05,2]
[396528536,1765037201252,175.46,8.206e-05,2]
[396528538,1765037214137,-155.83434681,8.4e-05,2]
[396528539,1765037249802,715.01,8.3e-05,2]
[396528541,1765037269781,715.01,8.316e-05,2]
[396528542,1765037271149,714.97,8.251e-05,2]
[396528543,1765037271642,150.0,6.858e-05,2]
[396528544,1765037272064,150.0,7.184e-05,2]
[396528545,1765037272509,150.0,7.511e-05,2]
[396528546,1765037272950,150.0,7.837e-05,2]
[396528547,1765037273357,150.0,8.164e-05,2]
[396528548,1765037292664,256.92243572,8.319e-05,2]
[396528552,1765037298811,686.41,8.3e-05,2]
[396528558,1765037315336,686.41,8.316e-05,2]
[396528563,1765037338807,686.41,8.316e-05,2]
[396528564,1765037342827,150.0,6.606e-05,2]
[396528565,1765037343278,150.0,6.921e-05,2]
[396528566,1765037344081,150.0,7.236e-05,2]
[396528567,1765037344291,250.0,0.00013109,3]
[396528568,1765037344361,250.0,0.00013099,3]
[396528569,1765037344545,150.0,7.55e-05,2]
[396528570,1765037344633,250.0,0.00010958,3]
[396528571,1765037344944,150.0,7.865e-05,2]
[396528572,1765037345216,150.0,8.179e-05,2]
[396528702,1765037361322,732.88,8.3e-05,2]
[396528704,1765037362167,-256.92243572,8.319e-05,2]
[396528710,1765037383686,732.88,8.316e-05,2]
[396528711,1765037384498,732.82,8.251e-05,2]
[396528721,1765037406882,256.92243572,8.319e-05,2]
[396528723,1765037411994,150.0,6.609e-05,2]
[396528724,1765037412595,150.0,6.923e-05,2]
[396528726,1765037413018,150.0,7.238e-05,2]
[396528727,1765037413462,150.0,7.553e-05,2]
[396528728,1765037413877,150.0,7.867e-05,2]
[396528729,1765037414449,167.28,8.182e-05,2]
[396528733,1765037424088,733.44,8.3e-05,2]
[396528735,1765037429154,733.44,8.316e-05,2]
[396528751,1765037432632,-733.44,8.4e-05,2]
[396528752,1765037432652,-256.92243572,8.403e-05,2]
[396528753,1765037432663,-220.0,8.403e-05,2]
[396528754,1765037432672,-300.0,8.404e-05,2]
[396528755,1765037432682,-300.0,8.404e-05,2]
[396528756,1765037432692,-300.0,8.404e-05,2]
[396528757,1765037432702,-300.0,8.404e-05,2]
[396528759,1765037432712,-1200.0,8.404e-05,2]
[396528761,1765037432721,-500.0,8.405e-05,2]
[396528762,1765037432731,-1200.0,8.405e-05,2]
[396528763,1765037432741,-259.25,8.487e-05,2]
[396528764,1765037432751,-2312.83697232,8.487e-05,2]
[396528765,1765037432761,-238.8012623,8.487e-05,2]
[396528766,1765037432771,-151.0,8.487e-05,2]
[396528767,1765037432781,-1263.44423385,8.487e-05,2]
[396528778,1765037438686,-14271.20157725,8.487e-05,2]
[396528779,1765037438701,-212076.75639794,8.492e-05,2]
[396528780,1765037438720,-307.6839237,8.492e-05,2]
[396528781,1765037439631,-31763.45449107,8.492e-05,2]
[396528790,1765037440850,-8719.3909719,8.492e-05,2]
[396528791,1765037440932,-931.68230671,8.492e-05,2]
[396528792,1765037442064,-3e-08,8.492e-05,2]
[396528809,1765037443969,-17.31492742,8.492e-05,2]
[396528820,1765037446878,-625141.83093645,8.492e-05,2]
[396528821,1765037446888,-195.16,8.497e-05,2]
[396528822,1765037446897,-1597.12644772,8.5e-05,2]
[396528823,1765037446907,-733.44,8.5e-05,2]
[396528824,1765037446917,-455.939069,8.582e-05,2]
[396528826,1765037446926,-455.939069,8.582e-05,2]
[396528828,1765037446935,-455.939069,8.582e-05,2]
[396528829,1765037446946,-455.939069,8.582e-05,2]
[396528830,1765037446956,-455.939069,8.582e-05,2]
[396528831,1765037446966,-455.939069,8.582e-05,2]
[396528832,1765037446977,-455.939069,8.582e-05,2]
[396528833,1765037446987,-455.939069,8.582e-05,2]
[396528834,1765037446997,-250.0,8.591e-05,2]
[396528835,1765037447007,-1000.0,8.597e-05,2]
[396528836,1765037447021,-733.44,8.6e-05,2]
[396528837,1765037447031,-500.0,8.679e-05,2]
[396528838,1765037447041,-207.37161183,8.692e-05,2]
[396528839,1765037447051,-372.8956324,8.692e-05,2]
[396528840,1765037447061,-667.51891517,8.692e-05,2]
[396528841,1765037447071,-1201.53404731,8.692e-05,2]
[396528842,1765037447080,-2136.06052855,8.692e-05,2]
[396528843,1765037447091,-3337.59457585,8.692e-05,2]
[396528844,1765037447100,-4806.13618923,8.692e-05,2]
[396528845,1765037447110,-733.44,8.7e-05,2]
[396528846,1765037447121,-1624.68,8.71e-05,2]
[396528847,1765037447130,-156.02,8.71e-05,2]
[396528848,1765037447140,-156.02,8.71e-05,2]
[396528849,1765037447149,-156.01,8.71e-05,2]
[396528850,1765037447159,-1597.1264477,8.746e-05,2]
[396528851,1765037447168,-300.0,8.754e-05,2]
[396528852,1765037447178,-300.0,8.754e-05,2]
[396528853,1765037447195,-300.0,8.754e-05,2]
[396528854,1765037447205,-300.0,8.754e-05,2]
[396528855,1765037447214,-300.0,8.754e-05,2]
[396528856,1765037447224,-300.0,8.754e-05,2]
[396528857,1765037447233,-300.0,8.754e-05,2]
[396528858,1765037447251,-300.0,8.754e-05,2]
[396528859,1765037447265,-300.0,8.754e-05,2]
[396528860,1765037447285,-300.0,8.754e-05,2]
[396528861,1765037447295,-300.0,8.754e-05,2]
[396528862,1765037447305,-300.0,8.754e-05,2]
[396528863,1765037447315,-300.0,8.754e-05,2]
[396528864,1765037447325,-300.0,8.754e-05,2]
[396528865,1765037447335,-300.0,8.754e-05,2]
[396528866,1765037447348,-600.0,8.754e-05,2]
[396528867,1765037447358,-165.191317,8.76e-05,2]
[396528868,1765037447368,-733.44,8.8e-05,2]
[396528869,1765037447378,-151.0,8.808e-05,2]
[396528870,1765037447387,-1051.0,8.808e-05,2]
[396528871,1765037447397,-500.0,8.808e-05,2]
[396528872,1765037447407,-500.0,8.808e-05,2]
[396528873,1765037447416,-151.0,8.808e-05,2]
[396528874,1765037447426,-151.0,8.808e-05,2]
[396528875,1765037447435,-151.61283267,8.808e-05,2]
[396528876,1765037447444,-151.0,8.808e-05,2]
[396528877,1765037447454,-151.0,8.808e-05,2]
[396528878,1765037447464,-151.0,8.808e-05,2]
[396528879,1765037447473,-151.0,8.808e-05,2]
[396528880,1765037447483,-500.0,8.808e-05,2]
[396528881,1765037447492,-500.0,8.808e-05,2]
[396528882,1765037447502,-500.0,8.808e-05,2]
[396528883,1765037447512,-500.0,8.808e-05,2]
[396528884,1765037447522,-159.13180362,8.808e-05,2]
[396528885,1765037447531,-918.0,8.808e-05,2]
[396528886,1765037447541,-223.04,8.811e-05,2]
[396528887,1765037447550,-298.96,8.819e-05,2]
[396528888,1765037447559,-298.96,8.828e-05,2]
[396528889,1765037447569,-500.0,8.834e-05,2]
[396528890,1765037447578,-151.0,8.834e-05,2]
[396528891,1765037447590,-500.0,8.834e-05,2]
[396528892,1765037447599,-151.0,8.834e-05,2]
[396528893,1765037447609,-500.0,8.834e-05,2]
[396528894,1765037447621,-151.0,8.834e-05,2]
[396528895,1765037447631,-500.0,8.834e-05,2]
[396528896,1765037447640,-151.0,8.834e-05,2]
[396528897,1765037447649,-500.0,8.834e-05,2]
[396528898,1765037447658,-500.0,8.834e-05,2]
[396528899,1765037447666,-151.0,8.834e-05,2]
[396528900,1765037447676,-298.96,8.836e-05,2]
[396528901,1765037447685,-214.01369866,8.839e-05,2]
[396528902,1765037447695,-298.32896933,8.945e-05,2]
[396528903,1765037447705,-1051.0,8.945e-05,2]
[396528904,1765037447714,-500.0,8.945e-05,2]
[396528905,1765037447724,-500.0,8.945e-05,2]
[396528906,1765037447734,-151.0,8.945e-05,2]
[396528907,1765037447743,-151.0,8.945e-05,2]
[396528908,1765037447753,-200.11624101,8.945e-05,2]
[396528909,1765037447763,-166.89537271,8.945e-05,2]
[396528910,1765037447772,-151.0,8.945e-05,2]
[396528911,1765037447781,-200.20145429,8.945e-05,2]
[396528912,1765037447791,-500.0,8.945e-05,2]
[396528913,1765037447800,-500.0,8.945e-05,2]
[396528914,1765037447809,-500.0,8.945e-05,2]
[396528915,1765037447819,-500.0,8.945e-05,2]
[396528916,1765037447829,-918.0,8.945e-05,2]
[396528917,1765037447839,-351.83403484,8.953e-05,2]
[396528918,1765037447848,-3734.44061058,8.953e-05,2]
[396528919,1765037447859,-500.0,8.971e-05,2]
[396528920,1765037447869,-151.0,8.971e-05,2]
[396528921,1765037447879,-500.0,8.971e-05,2]
[396528922,1765037447888,-151.0,8.971e-05,2]
[396528923,1765037447897,-500.0,8.971e-05,2]
[396528924,1765037447906,-151.0,8.971e-05,2]
[396528925,1765037447915,-500.0,8.971e-05,2]
[396528926,1765037447925,-151.0,8.971e-05,2]
[396528927,1765037447935,-500.0,8.971e-05,2]
[396528928,1765037447945,-500.0,8.971e-05,2]
[396528929,1765037447954,-151.0,8.971e-05,2]
[396528930,1765037447963,-1597.1264477,8.992e-05,2]
[396528931,1765037447972,-385.2246576,8.995e-05,2]
[396528932,1765037447981,-733.44,9e-05,2]
[396528933,1765037447991,-548.36538956,9.014e-05,2]
[396528934,1765037448001,-2052.23360042,9.019e-05,2]
[396528935,1765037448011,-2398.4119403,9.035e-05,2]
[396528936,1765037448022,-548.36538956,9.068e-05,2]
[396528937,1765037448031,-1051.0,9.082e-05,2]
[396528938,1765037448041,-500.0,9.082e-05,2]
[396528939,1765037448050,-500.0,9.082e-05,2]
[396528940,1765037448059,-151.0,9.082e-05,2]
[396528941,1765037448070,-151.0,9.082e-05,2]
[396528942,1765037448079,-151.0,9.082e-05,2]
[396528943,1765037448088,-168.27800485,9.082e-05,2]
[396528944,1765037448098,-600.76285516,9.082e-05,2]
[396528945,1765037448107,-541.77248691,9.082e-05,2]
[396528946,1765037448116,-500.0,9.082e-05,2]
[396528947,1765037448126,-918.0,9.082e-05,2]
[396528948,1765037448135,-548.36538956,9.096e-05,2]
[396528949,1765037448144,-733.44,9.1e-05,2]
[396528950,1765037448153,-500.0,9.108e-05,2]
[396528951,1765037448163,-151.0,9.108e-05,2]
[396528952,1765037448172,-276.75315617,9.108e-05,2]
[396528953,1765037448182,-151.0,9.108e-05,2]
[396528954,1765037448191,-328.47918651,9.108e-05,2]
[396528955,1765037448200,-151.0,9.108e-05,2]
[396528956,1765037448209,-500.0,9.108e-05,2]
[396528957,1765037448219,-151.0,9.108e-05,2]
[396528958,1765037448227,-500.0,9.108e-05,2]
[396528959,1765037448237,-151.0,9.108e-05,2]
[396528960,1765037448245,-455.939069,9.108e-05,2]
[396528961,1765037448255,-455.939069,9.108e-05,2]
[396528962,1765037448264,-455.939069,9.108e-05,2]
[396528963,1765037448273,-455.939069,9.108e-05,2]
[396528964,1765037448282,-468.315393,9.108e-05,2]
[396528965,1765037448293,-468.315393,9.108e-05,2]
[396528966,1765037448302,-468.315393,9.108e-05,2]
[396528967,1765037448311,-468.315393,9.108e-05,2]
[396528968,1765037448320,-250.92,9.126e-05,2]
[396528969,1765037448329,-2052.23360042,9.143e-05,2]
[396528970,1765037448339,-548.36538956,9.151e-05,2]
[396528971,1765037448348,-684.84383573,9.151e-05,2]
[396528972,1765037448358,-548.36538956,9.178e-05,2]
[396528973,1765037448368,-500.000001,9.2e-05,2]
[396528974,1765037448375,-387.16357257,9.2e-05,2]
[396528975,1765037448383,-733.44,9.2e-05,2]
[396528976,1765037448391,-1051.0,9.219e-05,2]
[396528977,1765037448399,-500.0,9.219e-05,2]
[396528978,1765037448406,-500.0,9.219e-05,2]
[396528979,1765037448413,-151.0,9.219e-05,2]
[396528980,1765037448419,-151.0,9.219e-05,2]
[396528981,1765037448426,-151.0,9.219e-05,2]
[396528982,1765037448435,-500.0,9.219e-05,2]
[396528983,1765037448444,-918.0,9.219e-05,2]
[396528984,1765037448453,-2155.0,9.227e-05,2]
[396528985,1765037448463,-631.0,9.227e-05,2]
[396528986,1765037448472,-1359.0,9.227e-05,2]
[396528987,1765037448482,-561.875,9.227e-05,2]
[396528988,1765037448491,-548.36538956,9.233e-05,2]
[396528989,1765037448501,-1597.1264477,9.238e-05,2]
[396528990,1765037448510,-3734.44061058,9.244e-05,2]
[396528991,1765037448519,-420.0,9.244e-05,2]
[396528992,1765037448529,-420.0,9.244e-05,2]
[396528993,1765037448538,-420.0,9.244e-05,2]
[396528994,1765037448548,-1680.0,9.244e-05,2]
[396528995,1765037448557,-500.0,9.245e-05,2]